Cogmind - Beta 16 @@@ ROGUE MODE // 2025.11.16 @ 12:01:33 Player: tthaar Result: Destroyed by 8U-ER4(R) with Subdweller Machine Gun Performance ------------- Evolutions (0) 0 Regions Visited (3) 600 Robots Destroyed (19) 95 Value Destroyed (537) 537 Prototype IDs (0) 0 Alien Tech Used (0) 0 Bonus (0) 0 TOTAL SCORE: 1232 Bonus ------- None Cogmind --------- Core Integrity 0/250 Matter 249/300 Energy 244/250 System Corruption 1% Temperature Cool (0) Movement Treading (160) Location -10/Subcaves Parts ------- > --- POWER (1) -------- Ion Engine > --- PROPULSION (2) --- Light Treads Wheel > --- UTILITY (2) ------ Structural Scanner Seismic Detector > --- WEAPON (2) ------- Medium Laser Slug Cannon > --- INVENTORY (5) ---- Grenade Launcher Shock Trap Shock Trap Peak State ------------ > --- POWER ------------ Ion Engine > --- PROPULSION ------- Light Treads Light Treads > --- UTILITY ---------- Structural Scanner Seismic Detector > --- WEAPON ----------- Assault Rifle Slug Cannon > --- INVENTORY -------- Ion Engine Medium Laser Grenade Launcher Shock Trap Shock Trap [Rating: 10] Favorites ----------- Power Ion Engine Engine Ion Engine Propulsion Light Treads Treads Light Treads Wheel Wheel Utility Structural Scanner Device Structural Scanner Storage Small Storage Unit Processor Terrain Scan Processor Weapon Assault Rifle Energy Gun Medium Laser Ballistic Gun Assault Rifle Ballistic Cannon Slug Cannon Launcher Grenade Launcher Build | -11 -10 -10 -10 ------- Run | Yrd Mat Min Sub Slots Evolved . | . . . . Power . | . . . . Propulsion . | . . . . Utility . | . . . . Weapon . | . . . . Parts Attached 20 | 5 12 3 . Power 3 | 1 1 1 . Engine 3 | 1 1 1 . Core . | . . . . Reactor . | . . . . Propulsion 3 | 2 . 1 . Treads 2 | 2 . . . Leg . | . . . . Wheel 1 | . . 1 . Hover . | . . . . Flight . | . . . . Utility 8 | 1 7 . . Device 5 | . 5 . . Storage 2 | 1 1 . . Processor 1 | . 1 . . Hackware . | . . . . Protection . | . . . . Artifact . | . . . . Weapon 6 | 1 4 1 . Energy Gun 2 | . 2 . . Energy Cannon . | . . . . Ballistic Gun 2 | 1 1 . . Ballistic Cannon 1 | . . 1 . Launcher 1 | . 1 . . Special Weapon . | . . . . Impact Weapon . | . . . . Slashing Weapon . | . . . . Piercing Weapon . | . . . . Special Melee Weapon . | . . . . Unidentified Prototypes . | . . . . Parts Lost 5 | . 2 3 . Power 1 | . . 1 . Propulsion 1 | . . 1 . Utility 2 | . 2 . . Weapon 1 | . . 1 . Highest Loss Streak 3 | . 1 3 . To Critical Strikes . | . . . . Average Backups 3 | 4 4 2 1 Power . | . 1 . . Propulsion . | 2 . . . Utility . | . . . . Weapon 2 | 1 2 2 1 Tool/Special . | . . . . Unused Backups 4 | . 4 . . Power . | . . . . Propulsion 4 | . 4 . . Utility . | . . . . Weapon . | . . . . Tool/Special . | . . . . Average Slot Usage (%) 98 | . 97 99 100 Engine 13 | . 14 13 14 Treads 26 | . 27 25 14 Wheel 1 | . . 2 14 Device 22 | . 18 28 28 Processor 3 | . 6 . . Energy Gun 12 | . 13 10 14 Ballistic Gun 11 | . 12 11 . Ballistic Cannon 3 | . . 5 14 Peak Build Rating 10 | 5 8 10 10 Average Rating 7 | 3 7 8 10 On Entrance 5 | . 5 7 10 Avg Prop Armor Cover (%) 5 | . . 5 5 Naked Turns . | . . . . Heaviest Build 20 | 12 20 16 16 Greatest Support 40 | 40 40 40 20 Greatest Overweight (x) 3 | 3 . . . Average Overweight (x) . | . . . . Largest Inventory Capacity 10 | 8 10 5 5 Average Capacity 5 | 7 5 5 5 Most Carried 9 | 7 9 5 3 Average Carried 4 | 4 4 4 3 Final Capacity 8 | 8 5 5 5 Final Carried 7 | 7 4 3 3 Class Distribution -------------------- 100% | Mutant Dominant Class ---------------- Mutant | -10/Materials Mutant | -10/Mines Mutant | -10/Subcaves Resources | -11 -10 -10 -10 ----------- Run | Yrd Mat Min Sub Matter Collected 594 | 249 213 132 . Remotely . | . . . . Salvage Created 677 | . 521 119 37 Parts 35 | . 25 6 4 Haulers Intercepted . | . . . . Recyclers Shooed . | . . . . Parts Field Recycled . | . . . . Retrieved Matter . | . . . . Parts Self-Destructed . | . . . . Prevented . | . . . . Parts Restored . | . . . . Kills | -11 -10 -10 -10 ------- Run | Yrd Mat Min Sub Combat Hostiles Destroyed 14 | . 8 5 1 Guns 12 | . 8 4 . Cannons 2 | . . 1 1 Classes Destroyed 7 | . 4 2 1 Worker 1 | . . 1 . Builder 1 | . 1 . . Tunneler 1 | . 1 . . Recycler 2 | . 2 . . Swarmer 3 | . . 3 . Grunt 10 | . 8 2 . Subdweller 1 | . . . 1 Best Kill Streak 4 | . 2 4 1 Combat Bots Only 3 | . 2 3 1 Max Kills in Single Turn 2 | . 1 2 1 Gunslinging . | . . . . Exploded . | . . . . Melee . | . . . . Uniques/NPCs Destroyed . | . . . . Combat | -11 -10 -10 -10 -------- Run | Yrd Mat Min Sub Hostile Shots Fired 108 | . 62 40 6 Missed 32 | . 22 8 2 Hits 76 | . 40 32 4 Projectile 76 | . 40 32 4 Damage Taken 979 | . 504 393 82 Core 268 | . 141 84 43 Absorbed by Shields . | . . . . Regen/Repaired (Parts) 99 | . 99 . . Core Remaining (%) 100 | 100 . . . Volleys Fired 71 | 1 44 19 7 Largest 2 | 1 2 2 2 Hottest 90 | 20 70 90 90 Shots Fired 131 | 1 84 32 14 Gun 114 | 1 84 22 7 Cannon 17 | . . 10 7 Launcher . | . . . . Special . | . . . . Kinetic 70 | 1 40 22 7 Thermal 61 | . 44 10 7 Explosive . | . . . . Electromagnetic . | . . . . Robot Hit Streak 9 | 1 9 6 6 Robot Miss Streak 4 | . 4 4 2 Penetration Max . | . . . . Secondary Targets 3 | . 2 1 . Max Gunslinging Chain 1 | . 1 1 . Shots Hit Robots 88 | 1 57 20 10 Core Hits 34 | 1 22 8 3 Critical Kills . | . . . . Critical Parts Destroyed . | . . . . Critical Strikes 2 | . 2 . . Burn 2 | . 2 . . Melee Attacks . | . . . . Impact . | . . . . Slashing . | . . . . Piercing . | . . . . Sneak Attacks . | . . . . Combat Hostiles . | . . . . Follow-up Attacks . | . . . . Damage Inflicted 1271 | 13 717 372 169 Guns 1018 | 13 716 214 75 Cannons 198 | . . 104 94 Explosions 54 | . . 54 . Melee . | . . . . Ramming 1 | . 1 . . Kinetic 631 | 13 317 207 94 Thermal 639 | . 399 165 75 Explosive . | . . . . Electromagnetic . | . . . . Impact . | . . . . Slashing . | . . . . Piercing . | . . . . Highest Corruption 1 | . 1 1 1 Average Corruption 1 | . 1 1 1 Corruption Purged . | . . . . Corruption Blocked . | . . . . Effects 14 | . 6 8 . Message Errors 4 | . 2 2 . Matter Fused 1 | . 1 . . Heat Flow Errors 3 | . 1 2 . Energy Discharges 3 | . 1 2 . Data Loss (minor) 2 | . 1 1 . Data Loss (major) 1 | . . 1 . Overload Shots . | . . . . Overflow Damage 31 | . . 31 . Projectiles . | . . . . Explosions 31 | . . 31 . Melee . | . . . . Knockbacks 2 | . . . 2 Impact . | . . . . Kinetic 2 | . . . 2 Secondary . | . . . . Self-Inflicted Damage 77 | . . 77 . Shots 2 | . . 2 . Rammed . | . . . . Targets Rammed 1 | . 1 . . Kicked . | . . . . Crushed 1 | . 1 . . Highest Temperature 233 | . 233 183 . Average Temperature 60 | . 53 74 . Received Heat Transfer 390 | . 282 108 . Siege Activations . | . . . . Martial Activations . | . . . . Shielding Activations . | . . . . Robots Disrupted . | . . . . Combat Hostiles . | . . . . Robots Corrupted . | . . . . Combat Hostiles . | . . . . Parts Fried 1 | . . 1 . Impact Corruptions . | . . . . Robots Melted . | . . . . Combat Hostiles . | . . . . Parts Melted 6 | . 4 2 . Heat Transferred 1748 | . 1143 383 222 Parts Sabotaged . | . . . . Parts Stolen . | . . . . Parts Stripped . | . . . . Power Chain Reactions . | . . . . Alert | -11 -10 -10 -10 ------- Run | Yrd Mat Min Sub Maximum Alert Level . | . . . . Low Security (%) 100 | 100 100 100 . Level 1 . | . . . . Level 2 . | . . . . Level 3 . | . . . . Level 4 . | . . . . Level 5 . | . . . . High Security . | . . . . Max Security . | . . . . Peak Influence 131 | . 92 131 . Initial . | . . . . Average 18 | . 18 21 . Influence Increases 506 | . 273 233 . Destroy 0b10 Robot/C 260 | . 160 100 . Destroy 0b10 Robot/NC 25 | . 20 5 . Destroy Leader 60 | . 40 20 . Trap Triggered on 0b10 10 | . . 10 . Successful Hack 53 | . 53 . . Disable Machine 75 | . . 75 . Destroy Structure 23 | . . 23 . Influence Decreases 506 | . 273 156 77 Entered New Map 41 | . . . 41 Time Decay 415 | . 253 126 36 Lost Part 50 | . 20 30 . Squads Dispatched 2 | . 2 . . Investigation . | . . . . Extermination . | . . . . Reinforcement 2 | . 2 . . Assault . | . . . . Garrison . | . . . . Intercept . | . . . . Searches Triggered . | . . . . Construction Impeded . | . . . . Haulers Reinforced . | . . . . Active Scanning Responses . | . . . . Cargo Convoy Interrupts . | . . . . Stealth | -11 -10 -10 -10 --------- Run | Yrd Mat Min Sub Distress Signals 2 | . 2 . . Communications Jammed . | . . . . Distress Signals . | . . . . Times Spotted 27 | . 20 5 2 Peak Tracking Total 3 | . 3 3 1 Tactical Retreats . | . . . . Traps | -11 -10 -10 -10 ------- Run | Yrd Mat Min Sub Traps Triggered 1 | . 1 . . Indirectly . | . . . . Trap Hack Attempts . | . . . . Triggered . | . . . . Disarmed . | . . . . Reprogrammed . | . . . . Reused 1 | . . 1 . Traps Extracted . | . . . . Installed 1 | . . 1 . Triggered 1 | . . 1 . Most Traps Carried 2 | . . 2 2 Machines | -11 -10 -10 -10 ---------- Run | Yrd Mat Min Sub Machines Disabled 5 | . . 5 . Max in Single Turn 5 | . . 5 . Machines Repaired . | . . . . Machines Dismantled . | . . . . Machines Sabotaged . | . . . . Overloaded Fab Kills . | . . . . Hacking | -11 -10 -10 -10 --------- Run | Yrd Mat Min Sub Machines Accessed 8 | . 8 . . Terminals 5 | . 5 . . Fabricators . | . . . . Repair Stations 1 | . 1 . . Recycling Units 2 | . 2 . . Scanalyzers . | . . . . Garrison Access . | . . . . Total Hacks 19 | . 19 . . Successful 13 | . 13 . . Failed 6 | . 6 . . Catastrophic 2 | . 2 . . Database Lockouts . | . . . . Manual 1 | . 1 . . Terminals 12 | . 12 . . Fabricators . | . . . . Repair Stations 3 | . 3 . . Recycling Units 4 | . 4 . . Scanalyzers . | . . . . Garrison Access . | . . . . Terminal Hacks 6 | . 6 . . Level Access Points 1 | . 1 . . Locate Traps 2 | . 2 . . Transport Status 1 | . 1 . . Hauler Manifests 1 | . 1 . . Zone Layout 1 | . 1 . . Fabricator Hacks . | . . . . Repair Station Hacks 3 | . 3 . . Scan Component 2 | . 2 . . Repair 1 | . 1 . . Recycling Unit Hacks 4 | . 4 . . Process 1 | . 1 . . Report Inventory 2 | . 2 . . Retrieve Matter 1 | . 1 . . Scanalyzer . | . . . . Garrison Access Hacks . | . . . . Unauthorized Hacks . | . . . . Terminals . | . . . . Fabricators . | . . . . Repair Stations . | . . . . Recycling Units . | . . . . Scanalyzers . | . . . . Garrison Access . | . . . . Data Cores Recovered . | . . . . Used . | . . . . Hacking Detections 4 | . 4 . . Full Trace Events 2 | . 2 . . Feedback Events . | . . . . Feedback Blocked . | . . . . Robot Schematics Acquired . | . . . . Robots Built . | . . . . Authchips . | . . . . Time . | . . . . Total Robot Build Rating . | . . . . Part Schematics Acquired . | . . . . Parts Built . | . . . . Authchips . | . . . . Time . | . . . . Total Part Build Rating . | . . . . Part Studies Acquired . | . . . . Parts Repaired 1 | . 1 . . Time 13 | . 13 . . Parts Recycled . | . . . . Recycled Matter 173 | . 173 . . Retrieved Matter 173 | . 173 . . Retrieved Components . | . . . . Parts Scanalyzed . | . . . . Part Schematics Acquired . | . . . . Parts Damaged . | . . . . Bothacking | -11 -10 -10 -10 ------------ Run | Yrd Mat Min Sub Used RIF Installer . | . . . . Robots Hacked . | . . . . Non-combat . | . . . . Combat . | . . . . Robot Hacks Applied . | . . . . Relay Couplers Released . | . . . . Fabnet Peak Effective % . | . . . . Robots Rewired . | . . . . Allies Hacked . | . . . . Hacks Repelled . | . . . . Allies | -11 -10 -10 -10 -------- Run | Yrd Mat Min Sub Total Allies . | . . . . Largest Group . | . . . . Highest-Rated Group . | . . . . Highest-Rated Ally . | . . . . Total Orders . | . . . . Ally Attacks . | . . . . Total Damage . | . . . . Kills . | . . . . Allies Corrupted . | . . . . Allies Melted . | . . . . Intel | -11 -10 -10 -10 ------- Run | Yrd Mat Min Sub Active Infowar (turns) 2409 | . 1120 1199 90 Terrain 602 | . 602 . . Structural 1910 | . 621 1199 90 Seismic 1806 | . 517 1199 90 Robot Analysis Total . | . . . . Derelict Logs Recovered 2 | . . 2 . Drone Launches . | . . . . Drone Recoveries . | . . . . Exploration | -11 -10 -10 -10 ------------- Run | Yrd Mat Min Sub Turns Passed 2882 | 152 1441 1199 90 Spaces Moved 1636 | 81 800 711 44 Core 31 | 31 . . . Treads 1605 | 50 800 711 44 Legs . | . . . . Wheels . | . . . . Hover . | . . . . Flight . | . . . . Fastest Speed 50 | 50 160 160 160 Average Speed 160 | 165 160 160 160 Slowest Speed 200 | 200 160 160 160 Overloaded Moves . | . . . . Propulsion Burnouts . | . . . . Robots Hopped . | . . . . Potential Cave-ins . | . . . . Cave-ins Triggered . | . . . . Exploration Rate (%) 51 | 5 98 98 4 Regions Visited 3 Branch Regions 2 Pre-discovered Areas . | . . . . Known Exits Taken . | . . . . Unknown Exits Taken 3 | 1 1 1 . Scrap Searched 1 | . . 1 . Spaces Dug . | . . . . Terrain Destroyed 30 | . . 29 1 Melee . | . . . . Projectile 7 | . . 6 1 AOE 23 | . . 23 . Terrain Rammed . | . . . . Walls Destroyed . | . . . . Machines Disabled . | . . . . Actions | -11 -10 -10 -10 --------- Run | Yrd Mat Min Sub Total 1766 | 98 875 742 51 Wait . | . . . . Move 1633 | 80 799 710 44 Hop . | . . . . Pick Up 29 | 12 12 5 . Fast Attach . | . . . . Attach 13 | 5 5 3 . Detach . | . . . . Swap 10 | . 9 1 . Drop 8 | . 5 3 . Fire 71 | 1 44 19 7 Melee . | . . . . Ram . | . . . . Kick . | . . . . Crush 1 | . 1 . . Escape Stasis . | . . . . Rewire . | . . . . Trap 1 | . . 1 . Miscellaneous . | . . . . Route ------- -11/Scrapyard -10/Materials (discovered 6 exits: *Mat x3 / [*Min x2] / [*Sub]) -10/Mines (discovered 3 exits: *Mat x2 / [*Sub]) -10/Subcaves History --------- Turn | Location | Event 21 | -11/Scrapyard | Discovered new exit (range 15) 153 | -11/Scrapyard | Entered Materials 154 | -10/Materials | Met a group of wandering Federalists 328 | -10/Materials | Build established: Mutant 524 | -10/Materials | Discovered new exit (range 9) 541 | -10/Materials | Discovered new exit (range 16) 796 | -10/Materials | Identified exit to Materials 907 | -10/Materials | Core integrity fell below 50% 1001 | -10/Materials | Discovered new exit (range 11) 1334 | -10/Materials | Discovered new exit (range 3) 1397 | -10/Materials | Repaired Lgt. Treads 1594 | -10/Materials | Entered Mines 1606 | -10/Mines | Found a hidden stash of uninstalled traps 1696 | -10/Mines | Met a Derelict bent on vengeance 2073 | -10/Mines | Learned Materials stockpile data 2100 | -10/Mines | Discovered exit to Materials (range 10) 2226 | -10/Mines | Discovered new exit (range 6) 2292 | -10/Mines | A weapon hastily lodged in a ceiling crevice suddenly fell to the ground 2572 | -10/Mines | Core integrity fell below 20% 2616 | -10/Mines | Lost 3 parts (1p1n1w) 2793 | -10/Mines | Entered Subcaves 2804 | -10/Subcaves | A swath of the cavern ceiling suddenly collapsed 2864 | -10/Subcaves | A Subdweller sparked back to life 2864 | -10/Subcaves | A Subdweller sparked back to life 2864 | -10/Subcaves | A Subdweller sparked back to life 2883 | -10/Subcaves | Destroyed by 8U-ER4(R) with Subdweller Machine Gun Last Messages --------------- A swath of the cavern ceiling suddenly collapses. 02864_ NJ-84Q(R) creaks and sparks as it begins to move. 02864_ 3B-4L6(R) creaks and sparks as it begins to move. 02864_ 8U-ER4(R) creaks and sparks as it begins to move. 02864_ NJ-84Q(R) destroyed. 02866_ 3B-4L6(R) suffers critical hit (Destroy). 02866_ 3B-4L6(R) destroyed. 02867_ Subatomizers dissect the Sub. Optics. 02870_ Slug penetrates Wall. 02873_ 8U-ER4(R) knocked back. 02875_ 8U-ER4(R) affixes Scrap Shield Fragment to Scrap Shield. 02879_ 8U-ER4(R) knocked back. 02880_ Subatomizers dissect the Sub. Optics. 02882_ 8U-ER4(R) affixes Scrap Shield Fragment to Scrap Shield. Map ----- +----------------------------------------------------+ | ?????????????????????????????????????????????????? | | ?????????????????????????????????????????????????? | | ?????????????????????????????????????????????????? | | ?????????????????????????????????????????????????? | | ?????????????????????????????????????????????????? | | ?????????????????????????????????????????????????? | | ?????????????????????????????????????????????????? | | ?????????????????????????????????????????????????? | | ?????????????????????????????????????????????????? | | ?????????????????????????????????????????????????? | | ?????????????????????????????????????????????????? | | ????????????????????????###??????????????????????? | | ?????????????????????#########???????????????????? | | ?????????????????????### ####???????????????????? | | ?????????????????????## ???????????????????? | | ????????????????????### ##?????????????????? | | ????????????????????### ? #######????????????? | | ????????????????????## ?? #########??????#### | | ????????????????????### #### #####??######## | | ???????????????####?## ##### ########## # | | ??????????????#### ?## #### ###### | | ??????????????### ### ## ## #### " | | ?????????????### % ;# <% ### # ### ## | | ?????????????### !&* R ### # # ## # | | ?????????????## !% # ## # | | ?????????????# ???## &&&@ ### ## ### | | ???????????????????## <%!& # ###### ####### | | ???????????????????################### #########? | | ???????????????????##############??##########????? | | ????????????????????????????????????######???????? | | ?????????????????????????????????????????????????? | | ?????????????????????????????????????????????????? | | ?????????????????????????????????????????????????? | | ?????????????????????????????????????????????????? | | ?????????????????????????????????????????????????? | | ?????????????????????????????????????????????????? | | ?????????????????????????????????????????????????? | | ?????????????????????????????????????????????????? | | ?????????????????????????????????????????????????? | | ?????????????????????????????????????????????????? | | ?????????????????????????????????????????????????? | | ?????????????????????????????????????????????????? | | ?????????????????????????????????????????????????? | | | | | | | | | | | | | | | +----------------------------------------------------+ Best States ------------- Heat Dissipation 35 Energy Generation 10 Energy Capacity 250 Matter Stores 300 Matter Capacity 300 Sight Range 16 Terrain Scan Range 14 Terrain Scan Density 85 Evasion (%) 40 Recoil Reduction 2 Item Schematics ----------------- None Robot Schematics ------------------ None Fabricated ------------ Nothing Repaired ---------- Lgt. Treads | 29% | -10/Materials Studied --------- None Alien Tech Used ----------------- None Achievements -------------- None Challenges ------------ None Game ------ Seed BlastDeepWell Manual? 0 Play Time 00:35:57 Cumulative 9.3 hours Start 2025.11.16 @ 11:10:08 End 2025.11.16 @ 12:01:33 Sessions 1 Manual Loads 0 Difficulty Rogue Special Mode None Game No. 9 Rogue 9 Adventurer 0 Explorer 0 Win Type - Total 0 Types 0/0/0/0/0/0/0/0/0/0 Lore% 8 Gallery% 10 Achievement% 10 Wizard Run 0 Options --------- Layout 1 ASCII 0 Keyboard 0 Movement Mouse Keybinds 0 Fullscreen 1 Font 48/Smallcaps Map View 50x35 Zoom Use 0% Tactical HUD 1 Map Filters NONE Filters NONE Steam 1 RUN: 40181a6a-a4bb-4577-bc81-c740ddafd95f